bitfinex/quotes_ETHUSD_20250622
["timestamp","ask_amount","ask_price","bid_price","bid_amount"]
[1750559497014,10.0,2265.7,2265.6,4.41379546]
[1750559497935,10.0,2265.7,2265.1,9.07463836]
[1750559498144,10.0,2265.5,2265.4,4.41414022]
[1750559498315,18.088,2265.5,2265.4,4.41414022]
[1750559499396,26.75116,2265.3,2264.8,4.66]
[1750559499731,10.0,2264.9,2264.2,0.8299]
[1750559499931,10.0,2264.9,2264.6,4.4156227]
[1750559499932,10.0,2264.7,2264.6,4.4156227]
[1750559501105,10.0,2265.4,2265.2,4.41462122]
[1750559501402,8.31529216,2265.3,2265.2,4.41462122]
[1750559503339,0.23029216,2265.3,2265.2,4.41462122]
[1750559503535,18.31229216,2265.3,2265.2,4.41462122]
[1750559503728,18.31129216,2265.3,2265.2,4.41462122]
[1750559503935,10.23029216,2265.3,2265.2,4.41462122]
[1750559504245,18.31129216,2265.3,2265.2,4.41462122]
[1750559504442,10.23029216,2265.3,2265.2,4.41462122]
[1750559504665,18.31029216,2265.3,2265.2,4.41462122]
[1750559506138,18.30929216,2265.3,2265.2,4.41462122]
[1750559506345,10.23029216,2265.3,2265.2,4.41462122]
[1750559506525,10.0,2265.3,2265.2,4.41462122]
[1750559506856,0.23026863,2265.7,2265.6,4.4138418]
[1750559507026,8.30726863,2265.7,2265.6,4.4138418]
[1750559508818,0.23026863,2265.7,2265.6,4.4138418]
[1750559509046,10.0,2266.1,2266.0,4.41306266]
[1750559509251,24.82616,2266.1,2266.0,4.41306266]
[1750559509446,34.82616,2266.1,2266.0,4.41306266]
[1750559509640,35.056397,2266.1,2266.0,4.41306266]
[1750559509934,38.5620367,2266.1,2266.0,4.41306266]
[1750559510531,16.981397,2266.1,2266.0,4.41306266]
[1750559510855,25.054397,2266.1,2266.0,4.41306266]
[1750559511051,0.230237,2266.1,2266.0,4.41306266]
[1750559511229,26.79543166,2266.4,2266.3,4.41247848]
[1750559511554,34.82316,2266.4,2266.3,4.41247848]
[1750559511729,16.98138237,2266.4,2266.3,4.41247848]
[1750559511932,25.05238237,2266.4,2266.3,4.41247848]
[1750559512241,35.05238237,2266.4,2266.3,4.41247848]
[1750559512642,0.23022237,2266.4,2266.3,4.41247848]
[1750559512846,16.75116,2267.1,2267.0,4.41109989]
[1750559513071,25.26467121,2267.1,2266.3,0.7514]
[1750559513232,25.26467121,2267.1,2265.9,2.4]
[1750559513233,26.75116,2266.8,2266.5,4.41194714]
[1750559513432,18.11327166,2266.7,2266.6,4.41189446]
[1750559513749,8.069,2266.7,2266.6,4.41189446]
[1750559514250,8.95414,2266.7,2266.4,4.41213492]
[1750559514455,10.04427166,2266.6,2266.5,4.41207164]
[1750559514659,10.0,2266.6,2266.5,4.41207164]
[1750559514969,16.75116,2265.9,2265.7,4.41364699]
[1750559515140,8.065,2265.8,2265.7,4.41355091]
[1750559515346,10.0,2265.6,2265.4,4.41410341]
[1750559515584,18.065,2265.5,2265.2,4.41451925]
[1750559515863,18.065,2265.5,2265.3,4.41442634]
[1750559515864,8.065,2265.5,2265.3,4.41442634]
[1750559516068,16.75116,2265.4,2265.2,4.41443227]
[1750559516288,18.064,2265.3,2265.2,4.41443227]
[1750559516579,34.81516,2265.3,2264.7,0.8256]
[1750559516775,34.81516,2265.3,2264.9,4.4150379]
[1750559516776,16.75116,2265.1,2264.9,4.4150379]
[1750559516932,10.0,2264.9,2264.4,0.8256]
[1750559517134,18.064,2264.8,2264.7,4.41559588]
[1750559517636,18.064,2264.8,2264.5,4.41595241]
[1750559517637,16.75116,2264.6,2264.5,4.41595241]
[1750559517969,26.75116,2264.9,2264.8,4.41529411]
[1750559518156,34.81316,2264.9,2264.8,4.41529411]
[1750559518353,34.81316,2264.9,2264.6,4.41573636]
[1750559518354,10.0,2264.8,2264.7,4.41550697]
[1750559518557,16.75116,2264.7,2263.9,7.06827116]
[1750559518743,18.10627166,2264.6,2264.4,4.41606523]
[1750559518948,18.062,2264.6,2264.4,4.41606523]
[1750559519271,0.04427166,2264.5,2264.4,4.41606523]
[1750559519473,0.04427166,2264.5,2264.2,4.41645347]
[1750559519766,10.0,2264.3,2264.2,4.41645347]
[1750559519973,10.0,2264.3,2263.9,0.8256]
[1750559520175,10.0,2264.1,2264.0,4.41684242]
[1750559520475,8.06,2264.1,2263.6,0.8256]
[1750559520649,8.06,2264.1,2263.9,4.4171456]
[1750559521033,18.06,2264.1,2264.0,4.41696113]
[1750559521233,10.0,2264.1,2264.0,5.3047888]
[1750559521438,8.06,2265.0,2264.3,4.41637592]
[1750559521638,8.06,2265.0,2264.9,4.41520596]
[1750559522665,18.06,2265.0,2264.9,4.41520596]
[1750559523647,8.059,2265.0,2264.9,4.41520596]
[1750559523883,16.75116,2265.5,2264.6,5.2277483]
[1750559524201,18.74839919,2265.7,2265.6,4.4138418]
[1750559524353,26.80539919,2265.7,2265.6,4.4138418]
[1750559524551,20.05423919,2265.7,2265.6,4.4138418]
[1750559524885,10.0,2265.6,2265.4,4.41420501]
[1750559525076,18.057,2265.5,2265.4,4.41420501]
[1750559525278,10.0,2265.4,2265.3,4.41441001]
[1750559525480,8.057,2265.5,2265.4,4.41423148]
[1750559525658,8.057,2265.5,2265.3,4.41434809]
[1750559525855,8.057,2265.5,2265.4,4.41423148]
[1750559526389,8.057,2265.5,2265.0,0.812]
[1750559526587,8.057,2265.5,2265.4,4.41423148]
[1750559526793,4.41502206,2265.0,2264.4,0.7519]
[1750559526963,26.75116,2264.8,2264.7,4.41559588]
[1750559527151,10.0,2264.7,2264.1,0.7519]
[1750559527362,8.09827166,2264.6,2264.4,4.41608021]
[1750559527605,8.054,2264.6,2264.5,4.41598586]
[1750559527804,10.0,2265.1,2264.5,0.88323562]
[1750559527991,10.0,2264.9,2264.8,4.41533659]
[1750559528781,10.23029064,2264.9,2264.8,4.41533659]
[1750559528982,0.8054,2265.2,2265.1,4.41481612]
[1750559529183,8.052,2265.2,2265.1,4.41481612]
[1750559529403,18.052,2265.2,2265.1,4.41481612]
[1750559529578,8.052,2265.2,2265.1,4.41481612]
[1750559531990,0.23027574,2265.4,2265.3,4.41442634]
[1750559532191,18.74839919,2265.7,2265.6,4.4138418]
[1750559532392,28.74839919,2265.7,2265.6,4.4138418]
[1750559532602,10.0,2265.6,2265.5,4.41395586]
[1750559534709,37.02664106,2265.7,2265.6,4.4138418]
[1750559535078,16.75116,2265.5,2265.0,0.7961]
[1750559535278,10.0,2265.5,2265.4,4.41409982]
[1750559535589,18.045,2265.5,2265.4,4.41409982]
[1750559536483,10.0,2265.4,2265.3,4.41439253]
[1750559536682,18.045,2265.5,2264.7,0.7773]
[1750559536683,8.045,2265.5,2264.7,0.7773]
[1750559536909,8.045,2265.5,2265.4,4.41423148]
[1750559537729,16.75116,2264.9,2264.0,0.7719]
[1750559537930,10.0,2264.6,2263.5,6.79482945]
[1750559538227,10.0,2264.4,2264.1,4.41667582]
[1750559538428,10.0,2264.4,2263.6,1.45138295]
[1750559538429,10.0,2264.2,2264.0,4.41686318]
[1750559538735,18.041,2264.1,2264.0,4.41690281]
[1750559538908,10.0,2264.1,2264.0,4.41690281]
[1750559540026,10.0,2264.1,2263.6,5.86912164]
[1750559540027,10.0,2264.0,2263.8,4.417171]
[1750559540190,4.41628706,2264.4,2263.8,4.417171]
[1750559540191,18.04,2263.9,2263.8,4.417171]
[1750559540592,18.04,2263.9,2263.6,0.7719]
[1750559540831,18.04,2263.9,2263.7,4.41741779]
[1750559541031,18.04,2263.9,2263.8,4.41735135]
[1750559542353,18.04,2263.9,2263.3,0.8266]
[1750559542354,16.75116,2263.7,2263.3,0.8266]
[1750559542553,0.45241629,2264.0,2263.6,4.41774165]
[1750559542729,10.0,2264.2,2264.0,4.41678976]
[1750559542916,34.78916,2264.1,2263.6,4.41774165]
[1750559543113,11.56018234,2264.1,2263.4,4.66]
[1750559543351,10.0,2263.9,2263.4,4.66]
[1750559543583,8.037,2263.8,2263.7,4.41754649]
[1750559543767,10.0,2264.1,2263.8,4.41723881]
[1750559543928,10.0,2263.9,2263.8,4.41723881]
[1750559544136,8.038,2264.2,2264.1,4.41676604]
[1750559544355,8.038,2264.2,2263.4,7.038]
[1750559544356,10.0,2264.1,2263.4,7.038]
[1750559544572,8.037,2264.0,2263.9,4.41715623]
[1750559544873,18.037,2264.0,2263.9,4.41715623]
[1750559545175,8.037,2264.0,2263.8,4.41735135]
[1750559545473,31.16968244,2263.2,2262.2,0.8266]
[1750559545763,26.75116,2262.8,2262.6,4.41967614]
[1750559545977,20.46924589,2262.7,2261.3,2.378]
[1750559546127,0.05525176,2262.6,2262.3,4.42020347]
[1750559546333,10.0,2262.4,2262.3,4.42028024]
[1750559546582,0.7883,2262.9,2261.8,0.022063]
[1750559546727,20.46824687,2262.8,2262.6,4.41969415]
[1750559546930,20.413,2262.8,2262.6,4.41969415]
[1750559547337,0.05524646,2262.7,2262.4,4.41999797]
[1750559547543,8.034,2262.6,2261.9,0.36906256]
[1750559547748,0.05525255,2262.5,2262.2,4.42030672]
[1750559547959,8.036,2262.4,2262.2,4.42030672]
[1750559548176,10.0,2262.3,2262.2,4.42047564]
[1750559548376,0.44131296,2262.6,2262.4,4.42008186]
[1750559548572,10.0,2262.4,2262.3,4.42019074]
[1750559548783,10.0,2262.2,2262.0,4.42086648]
[1750559549086,10.0,2262.1,2262.0,4.42086648]
[1750559549286,18.035,2262.1,2262.0,4.42086648]
[1750559549579,19.93369918,2262.1,2262.0,4.42086648]
[1750559549785,10.0,2262.0,2261.9,4.79003885]
[1750559550211,11.87904385,2262.0,2261.9,4.79003885]
[1750559550400,9.91304385,2262.0,2261.9,4.79003885]
[1750559551162,12.29204385,2262.0,2261.9,0.36906256]
[1750559551390,16.75116,2261.9,2260.8,5.46822334]
[1750559551698,8.08927084,2261.8,2261.4,4.42192732]
[1750559551998,10.0,2261.2,2260.8,1.0451976]
[1750559552205,19.75874493,2261.8,2260.8,1.0451976]
[1750559552206,8.033,2261.1,2261.0,4.42282176]
[1750559552454,0.55,2261.9,2261.0,4.42282176]
[1750559552455,2.12013,2262.8,2261.0,1.01121449]
[1750559552747,9.83653524,2263.0,2262.0,4.42083748]
[1750559552748,2.61042722,2263.0,2262.0,4.42083748]
[1750559552943,16.75116,2262.8,2262.7,4.4193448]
[1750559553114,10.0,2262.8,2262.7,4.4193448]
[1750559553436,10.0,2262.8,2262.5,4.41986113]
[1750559553437,10.0,2262.7,2262.5,4.41986113]
[1750559553639,10.0,2262.7,2261.9,4.42088834]
[1750559553640,8.08924616,2262.6,2261.9,4.42088834]
[1750559553801,10.0,2262.4,2262.3,4.42013289]
[1750559554003,12.38,2262.5,2262.4,4.42008486]
[1750559554242,20.414,2262.5,2262.4,4.42008486]
[1750559554534,14.68815614,2263.0,2262.8,4.41930351]
[1750559554535,16.75116,2262.9,2262.8,4.41930351]
[1750559554735,16.75116,2262.9,2262.4,4.42004972]
[1750559554736,26.75116,2262.8,2262.4,4.42004972]
[1750559555045,10.0,2262.5,2261.9,4.42106193]
[1750559555225,16.75116,2262.3,2261.5,0.8181]
[1750559555430,10.0,2262.1,2262.0,4.42086648]
[1750559555940,20.393,2262.1,2261.9,4.42098231]
[1750559556104,10.05526338,2262.0,2261.5,0.8181]
[1750559556439,10.0,2261.8,2261.7,4.4214522]
[1750559556642,10.0,2261.8,2261.7,5.2076522]
[1750559557633,18.031,2261.8,2261.7,5.2076522]
[1750559557852,10.0,2261.8,2261.7,5.2076522]
[1750559558045,18.031,2261.8,2261.7,4.4214522]
[1750559558219,18.031,2261.8,2261.1,4.42262083]
[1750559558220,10.0,2261.7,2261.3,4.42223499]
[1750559558422,8.03,2261.6,2260.9,0.7862]
[1750559558760,26.75116,2261.4,2261.3,4.42205969]
[1750559559339,10.0,2261.4,2261.3,4.42205969]
[1750559559556,18.029,2261.4,2261.3,4.42205969]
[1750559559868,18.029,2261.4,2260.8,4.65017152]
[1750559559869,10.0,2261.2,2261.1,4.42244804]
[1750559560078,18.03,2261.2,2261.1,4.42244804]
[1750559560238,18.03,2261.2,2260.8,0.2270976]
[1750559560439,10.05528628,2261.1,2260.8,4.65019005]
[1750559560643,26.75116,2260.9,2260.8,0.1770976]
[1750559560953,26.75116,2260.9,2260.8,4.60031062]
[1750559561155,26.75116,2260.9,2260.8,0.1770976]
[1750559561650,37.13916,2260.9,2260.8,0.1770976]
[1750559562158,37.13916,2260.9,2260.8,4.60031062]
[1750559562861,26.75116,2260.9,2260.8,4.60031062]
[1750559563024,37.14116,2260.9,2260.8,4.60031062]
[1750559563357,40.53289968,2260.9,2260.8,0.1770976]
[1750559564122,0.2304918,2260.9,2260.8,4.60031062]
[1750559564339,8.028,2260.9,2260.8,4.60031062]
[1750559564736,34.77916,2260.9,2260.8,0.1770976]
[1750559565037,34.77916,2260.9,2260.8,4.60031062]
[1750559565230,38.5162242,2260.9,2260.8,0.1770976]
[1750559565426,39.0662242,2260.9,2260.8,0.1770976]
[1750559565651,10.0,2260.5,2259.7,0.7891]
[1750559565839,1.01617125,2260.7,2260.4,4.42382251]
[1750559566042,14.259435,2261.0,2259.7,0.7891]
[1750559566043,0.05530098,2260.6,2260.3,4.42419147]
[1750559566261,19.34264197,2261.0,2260.9,4.42301738]
[1750559566565,37.36964197,2261.0,2260.9,4.42301738]
[1750559566759,16.98164197,2261.0,2260.9,4.42301738]
[1750559567068,5.523,2262.1,2261.3,4.42223499]
[1750559567069,0.8181,2261.8,2261.3,4.42223499]
[1750559567249,8.027,2261.4,2261.3,4.42223499]
[1750559567454,18.027,2261.4,2261.3,4.42223499]
[1750559567630,26.75116,2261.3,2260.7,4.4233802]
[1750559567836,2.06183704,2261.4,2261.3,4.42223499]
[1750559568037,16.75116,2261.3,2261.2,4.42243056]
[1750559568378,20.388,2261.3,2261.2,4.42243056]
[1750559568531,0.45240835,2261.4,2261.3,4.42223499]
[1750559568727,17.56926,2261.3,2260.6,0.7891]
[1750559568934,26.75116,2261.0,2260.9,4.42284721]
[1750559569148,26.75116,2260.9,2260.8,4.42321302]
[1750559569367,2.362,2260.9,2260.8,4.42321302]
[1750559569670,2.41729154,2260.9,2260.8,4.42321302]
[1750559570082,12.362,2260.9,2260.8,4.42321302]
[1750559570554,12.362,2260.9,2260.7,4.423275]
[1750559570864,18.025,2260.8,2260.7,4.423275]
[1750559571429,10.387,2260.8,2260.7,4.42340867]
[1750559571630,10.55,2261.2,2260.8,4.42319346]
[1750559571829,0.05529262,2261.1,2260.8,4.42319346]
[1750559572063,10.0,2260.9,2260.8,4.42319346]
[1750559572266,10.0,2260.9,2260.3,0.7891]
[1750559572467,10.0,2260.7,2260.6,4.42342601]
[1750559572647,2.362,2260.8,2260.7,4.4233122]
[1750559572954,12.41729383,2260.8,2260.7,4.4233122]
[1750559573271,10.0,2260.8,2260.7,4.4233122]
[1750559573560,20.385,2260.8,2260.7,4.3733122]
[1750559573763,10.0,2260.8,2260.7,4.3733122]
[1750559573987,0.36478324,2261.2,2261.1,4.42262615]
[1750559574148,0.36478324,2261.2,2261.1,5.2005245]
[1750559574486,16.75116,2262.5,2261.7,0.7558]
[1750559574646,26.75116,2262.2,2262.0,4.42076717]
[1750559574988,16.75116,2262.0,2261.9,4.42106009]
[1750559575178,16.75116,2262.0,2261.7,4.42128982]
[1750559575179,20.4702018,2262.0,2261.7,4.42128982]
[1750559575374,20.4702018,2262.0,2260.8,4.42304306]
[1750559575375,16.75116,2261.8,2260.8,4.42304306]
[1750559575534,10.0,2261.6,2261.5,4.4217071]
[1750559575733,10.0,2261.4,2261.3,4.42222964]
[1750559575948,18.021,2261.4,2261.3,4.42222964]
[1750559576355,10.0,2261.7,2260.8,4.423156]
[1750559576550,12.362,2261.5,2261.4,4.42203944]
[1750559576756,3.758146,2261.7,2261.4,4.42203944]
[1750559577077,10.0,2261.3,2260.6,0.7558]
[1750559577240,10.8069,2261.1,2261.0,4.42282176]
[1750559577574,10.0,2261.1,2261.0,4.42282176]
[1750559577877,16.75116,2260.9,2260.6,4.42340946]
[1750559578079,10.0,2260.9,2260.8,4.42321302]
[1750559578248,10.0,2260.9,2260.3,0.8133]
[1750559578249,2.362,2261.3,2261.2,4.42243056]
[1750559578449,0.43238505,2261.5,2261.4,4.42203944]
[1750559578650,0.8069,2262.2,2261.1,4.42262615]
[1750559578838,0.23031737,2262.3,2262.0,4.42086648]
[1750559579043,3.1689,2262.9,2262.2,4.42047564]
[1750559579277,8.018,2262.8,2262.4,4.42008486]
[1750559579478,8.24833379,2262.7,2262.6,4.41969415]
[1750559579869,8.018,2262.7,2262.0,5.23416648]
[1750559580072,8.018,2262.6,2262.5,4.4198895]
[1750559580267,0.23034483,2262.8,2262.7,4.41949882]
[1750559580469,24.99850483,2262.8,2261.6,4.66]
[1750559580683,0.23034483,2262.8,2262.1,0.02205036]
[1750559580845,18.017,2262.7,2262.6,4.41969415]
[1750559581367,0.59512807,2262.8,2261.7,4.42144646]
[1750559581558,8.0712421,2262.7,2261.6,4.42163894]
[1750559581758,8.016,2262.7,2262.1,4.42067105]
[1750559581986,10.0,2262.6,2262.5,4.41979784]
[1750559582201,0.23034483,2262.8,2262.7,4.41949882]
[1750559582403,0.23034483,2262.8,2261.6,4.42163894]
[1750559582404,17.57526,2262.6,2261.6,0.7665]
[1750559582688,2.41725262,2262.5,2262.3,4.42011948]
[1750559583003,10.0,2262.3,2262.2,4.42038332]
[1750559583149,16.75116,2262.3,2262.1,4.42065684]
[1750559583350,10.0,2262.3,2262.2,4.42047564]
[1750559583980,18.013,2262.3,2262.2,4.42047564]
[1750559584575,18.013,2262.3,2262.2,5.18697564]
[1750559584887,8.013,2262.6,2262.4,4.42003168]
[1750559585257,18.013,2262.6,2262.5,4.4198895]
[1750559585454,18.013,2262.6,2262.4,4.41997098]
[1750559585669,18.013,2262.6,2262.5,4.4198895]
[1750559585846,10.0,2262.6,2262.5,4.4198895]
[1750559586047,9.03503448,2262.6,2262.3,4.4201984]
[1750559586351,9.03503448,2262.6,2262.4,4.42008486]
[1750559586547,26.75116,2262.5,2262.4,4.42008486]
[1750559586765,10.0,2262.4,2262.3,4.42028024]
[1750559587374,10.0,2262.4,2262.2,4.42047564]
[1750559587375,10.0,2262.3,2262.2,4.42047564]
[1750559587581,8.01,2262.3,2262.2,4.42047564]
[1750559587775,18.01,2262.3,2262.2,4.42047564]
[1750559587976,18.01,2262.3,2262.1,4.42051239]
[1750559588181,18.01,2262.3,2262.1,4.42056249]
[1750559588389,18.01,2262.3,2261.6,2.361]
[1750559588390,10.0,2262.0,2261.6,4.4215723]
[1750559588570,1.99135035,2262.3,2261.5,0.02209235]
[1750559588767,37.16142298,2262.2,2262.1,4.42067105]
[1750559588974,37.10616,2262.2,2262.1,4.42067105]
[1750559589297,10.0,2262.1,2261.3,4.42217818]
[1750559589453,10.0,2261.9,2261.8,4.4212574]
[1750559590056,2.23463504,2262.1,2262.0,4.42086648]
[1750559590260,10.0,2262.0,2261.8,4.4210688]
[1750559590479,8.06326368,2261.9,2261.8,4.4212574]
[1750559590694,11.99135035,2262.3,2262.1,4.42067105]
[1750559590862,20.0,2262.3,2262.1,4.42067105]
[1750559591069,8.008,2262.2,2262.1,4.42067105]
[1750559591270,16.75116,2262.0,2261.8,4.42111589]
[1750559591472,18.0632636,2261.9,2261.5,4.4218439]
[1750559591677,18.008,2261.9,2261.8,4.4212574]
[1750559591875,10.0,2261.9,2261.8,4.4212574]
[1750559592061,10.0,2261.9,2261.8,6.09470745]
[1750559592262,10.0,2261.9,2261.8,5.1883574]
[1750559592522,18.007,2261.9,2261.8,4.4212574]
[1750559592682,8.007,2261.9,2261.8,4.4212574]
[1750559592885,2.346,2262.5,2261.7,4.42145288]
[1750559593210,29.09716,2262.5,2262.4,4.42008486]
[1750559593365,18.007,2262.4,2262.1,4.42058377]
[1750559593562,26.75116,2262.2,2262.1,4.42067105]
[1750559593775,10.0,2261.9,2261.5,0.7671]
[1750559593995,8.006,2261.8,2261.5,0.7671]
[1750559594265,18.006,2261.8,2261.7,4.42145288]
[1750559594468,16.75116,2261.6,2261.0,4.42282176]
[1750559594669,10.0,2261.6,2261.5,4.4218439]
[1750559594975,34.75716,2261.6,2261.5,4.4218439]
[1750559595183,18.005,2261.6,2261.5,4.4218439]
[1750559595810,10.0,2261.6,2261.5,4.4218439]
[1750559596327,0.23042728,2261.8,2261.7,4.42145288]
[1750559596485,0.23042728,2261.8,2261.7,4.44352958]
[1750559596671,0.23042728,2261.8,2261.7,5.18555288]
[1750559596873,8.005,2262.3,2262.2,4.42047564]
[1750559597203,18.005,2262.3,2262.2,4.42047564]
[1750559597569,8.005,2262.3,2262.2,4.42047564]
[1750559597766,0.23036601,2262.4,2262.3,4.42028024]
[1750559597967,18.23436601,2262.4,2262.3,4.42028024]
[1750559598833,10.0,2262.3,2261.8,4.4212574]
[1750559598996,10.0,2262.1,2262.0,4.42086648]
[1750559599632,0.23036601,2262.4,2262.3,4.42028024]
[1750559599925,8.23336601,2262.4,2261.8,4.42115527]
[1750559600132,10.0,2262.2,2262.1,4.42047939]
[1750559600332,8.002,2262.2,2262.1,4.42047939]
[1750559600702,8.002,2262.2,2262.1,4.42067105]
[1750559601242,26.75116,2262.1,2261.5,2.346]
[1750559601440,10.0,2261.9,2261.8,4.4212574]
[1750559602041,1.0592277,2262.4,2262.1,4.42067105]
[1750559602240,0.23036601,2262.4,2262.3,4.42028024]
[1750559602422,0.23036601,2262.4,2262.2,4.4203752]
[1750559602423,10.0,2262.3,2262.2,4.4203752]
[1750559603730,0.23036601,2262.4,2262.2,4.4203752]
[1750559603935,0.23036601,2262.4,2262.3,4.42028024]
[1750559604106,10.23036601,2262.4,2262.3,4.42028024]
[1750559604932,12.05340261,2262.4,2262.3,4.42028024]
[1750559605612,10.0,2262.2,2261.9,0.7641]
[1750559605807,10.0,2262.1,2262.0,4.42086648]
[1750559606125,17.999,2262.1,2262.0,4.42086648]
[1750559606297,36.55006,2262.1,2261.8,4.42109149]
[1750559606498,1.7999,2262.1,2262.0,4.42086648]
[1750559606801,10.0,2262.0,2261.9,4.42106193]
[1750559607310,14.39940261,2262.4,2262.3,4.42028024]
[1750559607636,22.39740261,2262.4,2262.3,4.42028024]
[1750559607818,12.05340261,2262.4,2262.3,4.42028024]
[1750559608133,22.39640261,2262.4,2262.2,4.42037596]
[1750559608325,22.39640261,2262.4,2262.3,4.42028024]
[1750559609237,22.39640261,2262.4,2262.2,4.4204036]
[1750559610049,22.39640261,2262.4,2262.3,4.42028024]
[1750559611027,0.23036601,2262.4,2262.3,4.42028024]
[1750559611234,8.22636601,2262.4,2262.3,4.42028024]
[1750559611541,0.23036601,2262.4,2262.3,4.42028024]
[1750559611703,8.22536601,2262.4,2262.3,4.42028024]
[1750559612215,10.23036601,2262.4,2262.3,4.42028024]
[1750559612815,18.22436601,2262.4,2262.3,4.42028024]
[1750559613845,0.23036601,2262.4,2262.3,9.96435569]
[1750559614156,2.346,2263.7,2263.4,4.41813201]
[1750559614310,9.60610802,2264.4,2264.0,4.41696113]
[1750559614311,3.1588,2264.1,2264.0,4.41696113]
[1750559614665,2.28562298,2265.6,2264.0,4.41696113]
[1750559614666,16.75116,2264.5,2264.0,4.41696113]
[1750559614867,16.75116,2265.1,2264.4,5.20521558]
[1750559615010,16.75116,2265.5,2264.5,0.02193131]
[1750559615209,2.19743061,2265.4,2265.3,4.41442634]
[1750559615615,7.992,2265.4,2265.3,4.41442634]
[1750559615952,0.23018358,2265.4,2265.3,4.41442634]
[1750559616123,17.992,2265.4,2265.3,4.41442634]
[1750559617069,16.75116,2265.0,2264.5,4.41579408]
[1750559617207,16.75116,2264.8,2264.3,0.7664]
[1750559617519,30.23059534,2264.8,2264.7,4.41559588]
[1750559617725,38.21759534,2264.8,2264.7,4.41559588]
[1750559618045,27.53406,2265.7,2264.8,0.8025]
[1750559618212,16.75116,2265.7,2264.9,0.02190779]
[1750559618410,10.0,2265.5,2265.4,4.41423148]
[1750559618950,16.75116,2265.7,2265.6,4.4138418]
[1750559619148,16.75116,2265.7,2264.8,0.8025]
[1750559619349,26.75116,2265.6,2264.8,1.32430477]
[1750559619644,10.0,2265.6,2265.4,4.41409901]
[1750559619841,36.75116,2265.6,2265.5,4.41403663]
[1750559620052,10.0,2265.5,2265.4,4.41415935]
[1750559620347,16.75116,2265.3,2264.8,0.8025]
[1750559620510,10.0,2265.3,2265.2,4.41446753]
[1750559621623,17.983,2265.3,2265.2,4.41446753]
[1750559622562,10.0,2265.1,2264.8,0.8025]
[1750559622766,10.0,2265.3,2265.2,4.4144353]
[1750559622928,0.23019757,2265.8,2265.0,4.41494059]
[1750559623122,29.13833785,2265.7,2265.1,0.0219137]
[1750559623333,10.0,2265.5,2265.3,4.41437404]
[1750559623537,10.0,2265.5,2264.8,5.21777246]
[1750559623538,0.23019757,2265.8,2265.7,4.41364699]
[1750559623831,8.21019757,2265.8,2265.7,4.41364699]
[1750559624027,0.23019757,2265.8,2265.7,4.43553846]
[1750559624236,0.23019757,2265.8,2265.7,4.41364699]
[1750559624472,0.23019757,2265.8,2265.7,4.4355321]
[1750559624623,0.23019757,2265.8,2265.7,4.41364699]
[1750559626165,16.75116,2266.6,2266.5,4.41208912]
[1750559626348,0.23022521,2266.4,2266.3,4.41247848]
[1750559626533,0.23022521,2266.4,2266.3,4.4343351]
[1750559626740,16.75116,2267.2,2266.6,4.41187375]
[1750559627059,16.75116,2267.2,2267.1,4.41092144]
[1750559627580,8.20617313,2267.2,2265.8,15.0213568]
[1750559627761,16.50116,2267.0,2266.0,4.41306266]
[1750559627963,2.79500877,2267.0,2266.1,4.85417419]
[1750559628162,10.0,2266.9,2266.8,4.4115052]
[1750559628459,17.976,2266.9,2266.8,4.4115052]
[1750559628664,10.0,2266.9,2266.8,4.4115052]
[1750559628892,0.29248388,2267.2,2267.1,4.41092144]
[1750559628893,0.23017313,2267.2,2267.1,4.41092144]
[1750559629053,0.23017313,2267.2,2266.1,7.18515909]
[1750559629054,10.0,2267.0,2266.1,7.18515909]
[1750559629256,1.7973,2266.9,2266.7,4.41159069]
[1750559629443,7.973,2266.8,2265.9,6.74421357]
[1750559629643,0.23017313,2267.2,2267.1,4.41092144]
[1750559629844,0.23017313,2267.2,2267.1,4.43274537]
[1750559630045,18.20217313,2267.2,2267.1,4.41092144]
[1750559630946,0.23017313,2267.2,2267.1,4.41092144]
[1750559631147,0.2270976,2267.6,2267.5,4.41014332]
[1750559631449,18.1970976,2267.6,2267.5,4.41014332]
[1750559631851,0.2270976,2267.6,2267.5,4.41014332]
[1750559632082,8.1960976,2267.6,2267.5,4.41014332]
[1750559632886,0.2270976,2267.6,2267.5,4.41014332]
[1750559633047,18.1960976,2267.6,2267.5,4.41014332]
[1750559633460,18.1960976,2267.6,2266.9,2.5079]
[1750559633461,16.50116,2267.4,2266.9,2.5079]
[1750559633661,10.0,2267.1,2266.6,0.1769]
[1750559634000,17.967,2267.0,2266.9,4.4113106]
[1750559634168,10.0,2267.0,2266.9,4.4113106]
[1750559636085,10.0,2267.0,2266.3,7.966]
[1750559636086,26.50116,2266.9,2266.4,4.41228379]
[1750559636400,0.05514118,2266.8,2266.7,4.41169982]
[1750559636691,17.965,2266.8,2266.7,4.41169982]
[1750559636988,10.0,2266.8,2266.7,4.41169982]
[1750559637191,17.965,2266.8,2266.7,4.41169982]
[1750559637554,10.0,2266.8,2266.7,4.41169982]
[1750559637772,10.0,2266.8,2266.7,5.75294416]
[1750559637983,7.964,2267.2,2267.1,4.41092144]
[1750559638223,7.964,2267.2,2266.8,0.55]
[1750559638378,7.964,2267.2,2267.1,4.41092144]
[1750559638798,0.2270976,2267.6,2267.5,4.41014332]
[1750559638989,8.1900976,2267.6,2267.5,4.41014332]
[1750559639188,18.1900976,2267.6,2267.5,4.41014332]
[1750559639475,16.50116,2267.5,2266.6,0.1769]
[1750559639709,10.8227,2267.2,2266.9,4.41129313]
[1750559639887,17.963,2267.1,2267.0,4.41106501]
[1750559640087,17.963,2267.1,2266.8,4.41135815]
[1750559640318,17.32386,2266.9,2266.2,0.1769]
[1750559640469,13.6929968,2266.8,2266.7,4.41169982]
[1750559640674,17.962,2266.8,2266.7,4.41169982]
[1750559640919,7.961,2267.1,2266.7,0.02184712]
[1750559641131,10.0,2266.9,2265.0,12.927]
[1750559641275,17.31156,2266.4,2265.8,4.41327526]
[1750559641478,10.0,2266.0,2265.1,0.1769]
[1750559641783,16.50116,2265.6,2265.5,4.41390473]
[1750559641986,10.0,2265.5,2265.4,4.41417826]